[Event "*** Titled Tuesday Blitz"]
[Site "Chess.com"]
[Date "2018.08.07"]
[Round "4"]
[White "CarlssonLudvig"]
[Black "Orest_Vovk"]
[Result "0-1"]
[WhiteElo "2196"]
[BlackElo "2331"]
[TimeControl "180+2"]
[EndTime "13:52:27 PDT"]
[Termination "Orest_Vovk won by resignation"]

1. d4 {[%clk 0:03:01.9]} 1... Nc6 {[%clk 0:02:58.2]} 2. e4 {[%clk 0:03:00.4]}
2... e5 {[%clk 0:02:58.5]} 3. Nf3 {[%clk 0:03:01]} 3... exd4 {[%clk 0:02:58.5]}
4. Nxd4 {[%clk 0:03:01.8]} 4... Nxd4 {[%clk 0:02:59.1]} 5. Qxd4 {[%clk
0:03:02.3]} 5... Ne7 {[%clk 0:03:01]} 6. Be3 {[%clk 0:02:55.3]} 6... Nc6 {[%clk
0:02:59.7]} 7. Qd2 {[%clk 0:02:56.2]} 7... Bb4 {[%clk 0:02:59.7]} 8. c3 {[%clk
0:02:50.7]} 8... Ba5 {[%clk 0:02:59.5]} 9. Na3 {[%clk 0:02:51.7]} 9... O-O
{[%clk 0:02:59.4]} 10. Nc4 {[%clk 0:02:52.3]} 10... Bb6 {[%clk 0:03:00.3]} 11.
Nxb6 {[%clk 0:02:52]} 11... axb6 {[%clk 0:03:02.2]} 12. Bd3 {[%clk 0:02:53]}
12... d6 {[%clk 0:03:03.1]} 13. O-O {[%clk 0:02:52.8]} 13... Ne5 {[%clk
0:03:02.7]} 14. Be2 {[%clk 0:02:53.2]} 14... Be6 {[%clk 0:03:03.1]} 15. b3
{[%clk 0:02:53.7]} 15... Qh4 {[%clk 0:02:57.4]} 16. c4 {[%clk 0:02:37.4]} 16...
Ng4 {[%clk 0:02:37.5]} 17. Bf4 {[%clk 0:02:32.5]} 17... Ra5 {[%clk 0:02:33.8]}
18. Bg3 {[%clk 0:02:32.1]} 18... Qh6 {[%clk 0:02:30.8]} 19. Qxh6 {[%clk
0:02:31.5]} 19... Nxh6 {[%clk 0:02:31.7]} 20. a4 {[%clk 0:02:30.4]} 20... Ng4
{[%clk 0:02:26.4]} 21. Rad1 {[%clk 0:02:20.1]} 21... f6 {[%clk 0:02:25.2]} 22.
f3 {[%clk 0:02:16.2]} 22... Ne5 {[%clk 0:02:24.3]} 23. Be1 {[%clk 0:02:14.4]}
23... Raa8 {[%clk 0:02:24]} 24. h3 {[%clk 0:02:14.5]} 24... Nc6 {[%clk
0:02:19.7]} 25. Bc3 {[%clk 0:02:15]} 25... Na5 {[%clk 0:02:19.1]} 26. Bxa5
{[%clk 0:02:07]} 26... bxa5 {[%clk 0:02:15.1]} 27. Rd4 {[%clk 0:02:08.9]} 27...
b6 {[%clk 0:02:15.7]} 28. Rfd1 {[%clk 0:02:08.7]} 28... Rae8 {[%clk 0:02:15.8]}
29. g4 {[%clk 0:02:09.5]} 29... g5 {[%clk 0:02:14.6]} 30. Kf2 {[%clk 0:02:08.2]}
30... Kg7 {[%clk 0:02:14]} 31. Bd3 {[%clk 0:02:09.1]} 31... Rh8 {[%clk
0:02:13.6]} 32. Rh1 {[%clk 0:01:57.8]} 32... h5 {[%clk 0:02:13.9]} 33. Kg2
{[%clk 0:01:54.7]} 33... hxg4 {[%clk 0:02:13.4]} 34. hxg4 {[%clk 0:01:56.6]}
34... Rxh1 {[%clk 0:02:11.7]} 35. Kxh1 {[%clk 0:01:58.5]} 35... Rh8+ {[%clk
0:02:12.5]} 36. Kg2 {[%clk 0:01:59.5]} 36... Kf7 {[%clk 0:02:11.8]} 37. Bc2
{[%clk 0:01:57.2]} 37... Bd7 {[%clk 0:02:10.2]} 38. Rd5 {[%clk 0:01:54.1]} 38...
Bc6 {[%clk 0:02:09.7]} 39. Rf5 {[%clk 0:01:48.1]} 39... Ke7 {[%clk 0:01:54]} 40.
Bb1 {[%clk 0:01:36.2]} 40... Bd7 {[%clk 0:01:48.8]} 41. Rd5 {[%clk 0:01:37.1]}
41... Be6 {[%clk 0:01:49.5]} 42. Rd2 {[%clk 0:01:37.7]} 42... Kd7 {[%clk
0:01:50.4]} 43. Kf2 {[%clk 0:01:26.2]} 43... Kc6 {[%clk 0:01:39.9]} 44. Ke3
{[%clk 0:01:19.6]} 44... Kc5 {[%clk 0:01:40.3]} 45. Kd3 {[%clk 0:01:18.5]} 45...
Kb4 {[%clk 0:01:40.3]} 46. Kc2 {[%clk 0:01:18.8]} 46... Rh3 {[%clk 0:01:35.5]}
47. Rf2 {[%clk 0:01:19.6]} 47... Rh1 {[%clk 0:01:36.2]} 48. Kb2 {[%clk
0:01:19.5]} 48... Kc5 {[%clk 0:01:32.6]} 49. Rd2 {[%clk 0:01:14.6]} 49... Rf1
{[%clk 0:01:30.4]} 50. Rd3 {[%clk 0:01:15.3]} 50... Kb4 {[%clk 0:01:28.3]} 51.
Bc2 {[%clk 0:01:16.2]} 51... Rf2 {[%clk 0:01:28.3]} 52. Rc3 {[%clk 0:01:09]}
52... Rd2 {[%clk 0:01:18.6]} 53. Rd3 {[%clk 0:01:05.5]} 53... Rf2 {[%clk
0:01:19]} 54. Rc3 {[%clk 0:01:06.4]} 54... Kc5 {[%clk 0:01:05.3]} 55. Rd3 {[%clk
0:01:06.4]} 55... Kc6 {[%clk 0:01:00.4]} 56. Kc3 {[%clk 0:01:01.3]} 56... Kd7
{[%clk 0:01:00.9]} 57. Bd1 {[%clk 0:00:58.9]} 57... Ke7 {[%clk 0:00:59.1]} 58.
Kd4 {[%clk 0:00:59.4]} 58... Bd7 {[%clk 0:00:51.7]} 59. Kd5 {[%clk 0:00:54.4]}
59... c5 {[%clk 0:00:41.8]} 60. e5 {[%clk 0:00:49.9]} 60... dxe5 {[%clk
0:00:40.1]} 61. Ke4 {[%clk 0:00:50.8]} 61... Bc6+ {[%clk 0:00:40.5]} 62. Ke3
{[%clk 0:00:52]} 62... Rh2 {[%clk 0:00:39.5]} 63. Be2 {[%clk 0:00:44.3]} 63...
Rh3 {[%clk 0:00:35.6]} 64. Kf2 {[%clk 0:00:44.9]} 64... Rh2+ {[%clk 0:00:34.9]}
65. Ke3 {[%clk 0:00:46]} 65... Bb7 {[%clk 0:00:33.6]} 66. Rd2 {[%clk 0:00:41.9]}
66... Bc6 {[%clk 0:00:29.9]} 67. Rd3 {[%clk 0:00:42.8]} 67... Rh1 {[%clk
0:00:30.5]} 68. Rd1 {[%clk 0:00:42.1]} 68... Rh3 {[%clk 0:00:27.4]} 69. Rd3
{[%clk 0:00:42.4]} 69... e4 {[%clk 0:00:27.5]} 70. Rd2 {[%clk 0:00:21.7]} 70...
exf3 {[%clk 0:00:27.9]} 71. Bd3 {[%clk 0:00:22.9]} 71... Rg3 {[%clk 0:00:25.5]}
72. Bf5 {[%clk 0:00:21.9]} 72... Rg2 {[%clk 0:00:22.3]} 73. Rf2 {[%clk
0:00:06.2]} 73... Rxf2 {[%clk 0:00:21.6]} 74. Kxf2 {[%clk 0:00:07.6]} 74... Kd6
{[%clk 0:00:23.2]} 75. Bc2 {[%clk 0:00:04.9]} 75... Ke5 {[%clk 0:00:21.8]} 76.
Bf5 {[%clk 0:00:04.2]} 76... Kf4 {[%clk 0:00:19.9]} 77. Bc8 {[%clk 0:00:02.3]}
77... Be4 {[%clk 0:00:20.4]} 78. Bd7 {[%clk 0:00:02.8]} 78... Bc2 {[%clk
0:00:20.6]} 79. Bc6 {[%clk 0:00:02.1]} 79... Bxb3 {[%clk 0:00:21]} 80. Bb5
{[%clk 0:00:03.5]} 80... Kxg4 {[%clk 0:00:19.8]} 81. Bd7+ {[%clk 0:00:05.2]}
81... Kf4 {[%clk 0:00:20.8]} 82. Bb5 {[%clk 0:00:06.6]} 82... g4 {[%clk
0:00:21.6]} 83. Kg1 {[%clk 0:00:07.7]} 83... g3 {[%clk 0:00:22.4]} 84. Bc6
{[%clk 0:00:08.7]} 84... Ke3 {[%clk 0:00:22.7]} 85. Kh1 {[%clk 0:00:06.9]} 85...
Bxc4 {[%clk 0:00:21.3]} 86. Bb7 {[%clk 0:00:07]} 86... Bd3 {[%clk 0:00:21.2]}
87. Bc6 {[%clk 0:00:06.3]} 87... Be4 {[%clk 0:00:20.2]} 88. Bxe4 {[%clk
0:00:06.9]} 88... Kxe4 {[%clk 0:00:21]} 89. Kg1 {[%clk 0:00:08.8]} 89... Ke3
{[%clk 0:00:21.9]} 90. Kf1 {[%clk 0:00:09.8]} 90... Kd2 {[%clk 0:00:22.3]} 91.
Kg1 {[%clk 0:00:11]} 91... c4 {[%clk 0:00:23.1]} 92. Kh1 {[%clk 0:00:11.2]}
92... c3 {[%clk 0:00:24.1]} 0-1

[Event "*** Titled Tuesday Blitz"]
[Site "Chess.com"]
[Date "2018.08.07"]
[Round "4"]
[White "GMHess"]
[Black "Slovak_fighter2000"]
[Result "1/2-1/2"]
[WhiteElo "2623"]
[BlackElo "2406"]
[TimeControl "180+2"]
[EndTime "13:52:42 PDT"]
[Termination "Game drawn - insufficient material"]

1. d4 {[%clk 0:03:01.9]} 1... d5 {[%clk 0:03:01.2]} 2. Nf3 {[%clk 0:03:02.3]}
2... e6 {[%clk 0:03:02.4]} 3. g3 {[%clk 0:03:02.9]} 3... Nf6 {[%clk 0:03:03.8]}
4. Bg2 {[%clk 0:03:04.4]} 4... Be7 {[%clk 0:03:05.4]} 5. O-O {[%clk 0:03:06.1]}
5... O-O {[%clk 0:03:06.9]} 6. c4 {[%clk 0:03:08]} 6... dxc4 {[%clk 0:03:06.6]}
7. Qc2 {[%clk 0:03:09.2]} 7... a6 {[%clk 0:03:05.1]} 8. Qxc4 {[%clk 0:03:09.9]}
8... b5 {[%clk 0:03:05.8]} 9. Qc2 {[%clk 0:03:11.5]} 9... Bb7 {[%clk 0:03:07.3]}
10. Bd2 {[%clk 0:03:07]} 10... Be4 {[%clk 0:03:06.8]} 11. Qc1 {[%clk 0:03:08.5]}
11... Bb7 {[%clk 0:03:01.8]} 12. a3 {[%clk 0:02:57.9]} 12... Nbd7 {[%clk
0:02:52.6]} 13. Ba5 {[%clk 0:02:53.6]} 13... Nb6 {[%clk 0:02:46.4]} 14. Nbd2
{[%clk 0:02:45.2]} 14... Rc8 {[%clk 0:02:45]} 15. Nb3 {[%clk 0:02:40.2]} 15...
Nc4 {[%clk 0:02:42.9]} 16. Bb4 {[%clk 0:02:36]} 16... Bxb4 {[%clk 0:02:27.8]}
17. axb4 {[%clk 0:02:35.9]} 17... Qd6 {[%clk 0:02:28.1]} 18. Nc5 {[%clk
0:02:19.8]} 18... Bxf3 {[%clk 0:02:27.4]} 19. Bxf3 {[%clk 0:02:14.5]} 19... Qxd4
{[%clk 0:02:27.6]} 20. Bb7 {[%clk 0:01:28]} 20... Rb8 {[%clk 0:02:18.9]} 21. Qc3
{[%clk 0:01:16.6]} 21... Rfd8 {[%clk 0:01:37.7]} 22. e3 {[%clk 0:01:14.2]} 22...
Qd2 {[%clk 0:01:32.4]} 23. Qxd2 {[%clk 0:01:08.1]} 23... Rxd2 {[%clk 0:01:31.9]}
24. b3 {[%clk 0:01:07.9]} 24... Nd6 {[%clk 0:01:25.2]} 25. Bf3 {[%clk
0:00:57.7]} 25... Nd5 {[%clk 0:01:05.5]} 26. Nxa6 {[%clk 0:00:51.8]} 26... Rc8
{[%clk 0:01:06.5]} 27. Rfd1 {[%clk 0:00:17.7]} 27... Rxd1+ {[%clk 0:01:04.7]}
28. Rxd1 {[%clk 0:00:19.6]} 28... Ne7 {[%clk 0:00:32.8]} 29. Nxc7 {[%clk
0:00:10.4]} 29... Rxc7 {[%clk 0:00:24.2]} 30. Rxd6 {[%clk 0:00:10.3]} 30... g6
{[%clk 0:00:25.3]} 31. Rb6 {[%clk 0:00:11.1]} 31... Rc1+ {[%clk 0:00:25.9]} 32.
Kg2 {[%clk 0:00:11.9]} 32... Rb1 {[%clk 0:00:27.2]} 33. Rxb5 {[%clk 0:00:12.1]}
33... Rxb3 {[%clk 0:00:27.7]} 34. Rb7 {[%clk 0:00:11.1]} 34... Nf5 {[%clk
0:00:25]} 35. Bc6 {[%clk 0:00:06.5]} 35... Rb2 {[%clk 0:00:22.2]} 36. Kf3 {[%clk
0:00:07.4]} 36... Nd6 {[%clk 0:00:23.3]} 37. b5 {[%clk 0:00:07.1]} 37... Nxb7
{[%clk 0:00:23.9]} 38. Bxb7 {[%clk 0:00:08.2]} 38... Rxb5 {[%clk 0:00:24.9]} 39.
Be4 {[%clk 0:00:10.1]} 39... Rb6 {[%clk 0:00:25.7]} 40. Kf4 {[%clk 0:00:11.3]}
40... Kg7 {[%clk 0:00:27]} 41. h4 {[%clk 0:00:12.5]} 41... Rb4 {[%clk 0:00:27]}
42. Kf3 {[%clk 0:00:12.8]} 42... f5 {[%clk 0:00:27.4]} 43. Bd3 {[%clk
0:00:13.9]} 43... Kf6 {[%clk 0:00:27.3]} 44. Ba6 {[%clk 0:00:13.6]} 44... e5
{[%clk 0:00:28.4]} 45. Kg2 {[%clk 0:00:14.3]} 45... h6 {[%clk 0:00:28.4]} 46.
Bc8 {[%clk 0:00:14.4]} 46... Rb2 {[%clk 0:00:29.5]} 47. Bd7 {[%clk 0:00:14.7]}
47... e4 {[%clk 0:00:29.6]} 48. Bc8 {[%clk 0:00:15.1]} 48... g5 {[%clk
0:00:30.5]} 49. hxg5+ {[%clk 0:00:16.1]} 49... hxg5 {[%clk 0:00:32.4]} 50. Kf1
{[%clk 0:00:14.6]} 50... Ke5 {[%clk 0:00:33]} 51. Bd7 {[%clk 0:00:14.8]} 51...
f4 {[%clk 0:00:32.4]} 52. gxf4+ {[%clk 0:00:14.1]} 52... gxf4 {[%clk 0:00:34.3]}
53. exf4+ {[%clk 0:00:14]} 53... Kxf4 {[%clk 0:00:36.2]} 54. Be8 {[%clk
0:00:11.9]} 54... Ra2 {[%clk 0:00:30]} 55. Bf7 {[%clk 0:00:10.9]} 55... Rd2
{[%clk 0:00:27.7]} 56. Bh5 {[%clk 0:00:09.9]} 56... Rd5 {[%clk 0:00:24.4]} 57.
Be2 {[%clk 0:00:10.9]} 57... e3 {[%clk 0:00:22.3]} 58. fxe3+ {[%clk 0:00:11.6]}
58... Kxe3 {[%clk 0:00:24.2]} 59. Ba6 {[%clk 0:00:10.1]} 59... Ra5 {[%clk
0:00:22.7]} 60. Bb7 {[%clk 0:00:10.3]} 60... Ra2 {[%clk 0:00:22.2]} 61. Bc6
{[%clk 0:00:08.7]} 61... Rc2 {[%clk 0:00:21.9]} 62. Ba8 {[%clk 0:00:08.9]} 62...
Rf2+ {[%clk 0:00:21]} 63. Kg1 {[%clk 0:00:10.3]} 63... Ra2 {[%clk 0:00:20.3]}
64. Bb7 {[%clk 0:00:11]} 64... Kf4 {[%clk 0:00:21.2]} 65. Kf1 {[%clk 0:00:11.8]}
65... Rb2 {[%clk 0:00:21.4]} 66. Ba8 {[%clk 0:00:13.2]} 66... Ke3 {[%clk
0:00:22.6]} 67. Bc6 {[%clk 0:00:12.1]} 67... Rc2 {[%clk 0:00:23.4]} 68. Ba8
{[%clk 0:00:12.7]} 68... Rc1+ {[%clk 0:00:24.3]} 69. Kg2 {[%clk 0:00:13.7]}
69... Rc8 {[%clk 0:00:25.9]} 70. Bb7 {[%clk 0:00:14.6]} 70... Rg8+ {[%clk
0:00:26.9]} 71. Kf1 {[%clk 0:00:14.7]} 71... Rg7 {[%clk 0:00:27.7]} 72. Ba8
{[%clk 0:00:15.7]} 72... Rh7 {[%clk 0:00:27.1]} 73. Bc6 {[%clk 0:00:14.8]} 73...
Rh2 {[%clk 0:00:27.2]} 74. Ba8 {[%clk 0:00:15.7]} 74... Kf4 {[%clk 0:00:28]} 75.
Bb7 {[%clk 0:00:15.4]} 75... Kg3 {[%clk 0:00:26.9]} 76. Ba8 {[%clk 0:00:16]}
76... Rb2 {[%clk 0:00:27.6]} 77. Ke1 {[%clk 0:00:15.2]} 77... Kf4 {[%clk
0:00:28.1]} 78. Kf1 {[%clk 0:00:16.1]} 78... Ke3 {[%clk 0:00:27.5]} 79. Bc6
{[%clk 0:00:16.7]} 79... Rc2 {[%clk 0:00:28.4]} 80. Ba8 {[%clk 0:00:17.2]} 80...
Rc7 {[%clk 0:00:28]} 81. Bd5 {[%clk 0:00:14.1]} 81... Rd7 {[%clk 0:00:27.1]} 82.
Ba8 {[%clk 0:00:15]} 82... Rc7 {[%clk 0:00:24.5]} 83. Bd5 {[%clk 0:00:14.4]}
83... Kd4 {[%clk 0:00:25.7]} 84. Ba8 {[%clk 0:00:14.7]} 84... Re7 {[%clk
0:00:23]} 85. Kf2 {[%clk 0:00:14.8]} 85... Rf7+ {[%clk 0:00:22.9]} 86. Kg2
{[%clk 0:00:11.9]} 86... Ke3 {[%clk 0:00:23.3]} 87. Kg1 {[%clk 0:00:11.3]} 87...
Ra7 {[%clk 0:00:20.4]} 88. Bc6 {[%clk 0:00:12.3]} 88... Ra6 {[%clk 0:00:21.3]}
89. Bb7 {[%clk 0:00:13]} 89... Rb6 {[%clk 0:00:22.4]} 90. Ba8 {[%clk 0:00:13.9]}
90... Rb8 {[%clk 0:00:19.8]} 91. Bc6 {[%clk 0:00:14.3]} 91... Rd8 {[%clk
0:00:20.7]} 92. Bb7 {[%clk 0:00:14.6]} 92... Kf4 {[%clk 0:00:20.8]} 93. Kf1
{[%clk 0:00:15]} 93... Kg3 {[%clk 0:00:20.5]} 94. Ke2 {[%clk 0:00:15.2]} 94...
Rb8 {[%clk 0:00:20.3]} 95. Bc6 {[%clk 0:00:16.1]} 95... Rb2+ {[%clk 0:00:20.2]}
96. Kd3 {[%clk 0:00:16.9]} 96... Kf4 {[%clk 0:00:20.5]} 97. Kc3 {[%clk
0:00:17.4]} 97... Rb1 {[%clk 0:00:21.1]} 98. Kd2 {[%clk 0:00:16.9]} 98... Kg3
{[%clk 0:00:20.7]} 99. Be4 {[%clk 0:00:16.3]} 99... Kf2 {[%clk 0:00:21.4]} 100.
Bxb1 {[%clk 0:00:16.5]} 1/2-1/2

[Event "*** Titled Tuesday Blitz"]
[Site "Chess.com"]
[Date "2018.08.07"]
[Round "4"]
[White "pKiLz5Rn9b"]
[Black "Tjktiger"]
[Result "1/2-1/2"]
[WhiteElo "2704"]
[BlackElo "2479"]
[TimeControl "180+2"]
[EndTime "13:56:02 PDT"]
[Termination "Game drawn by 50-move rule"]

1. e4 {[%clk 0:03:01.9]} 1... c5 {[%clk 0:03:00.4]} 2. c3 {[%clk 0:03:01.8]}
2... Nf6 {[%clk 0:03:00.8]} 3. e5 {[%clk 0:03:02.4]} 3... Nd5 {[%clk 0:03:02.3]}
4. g3 {[%clk 0:03:02.6]} 4... d6 {[%clk 0:03:02.1]} 5. exd6 {[%clk 0:03:02.8]}
5... e6 {[%clk 0:03:03.2]} 6. Nf3 {[%clk 0:03:03]} 6... Bxd6 {[%clk 0:03:04.8]}
7. Bg2 {[%clk 0:03:04.5]} 7... Nc6 {[%clk 0:03:06.3]} 8. O-O {[%clk 0:03:05.4]}
8... O-O {[%clk 0:03:07.9]} 9. d4 {[%clk 0:03:07]} 9... cxd4 {[%clk 0:03:09.8]}
10. Nxd4 {[%clk 0:03:08.3]} 10... Bd7 {[%clk 0:03:05.1]} 11. c4 {[%clk
0:02:26.8]} 11... Nb6 {[%clk 0:02:59.9]} 12. Nxc6 {[%clk 0:02:04.8]} 12... Bxc6
{[%clk 0:03:00.6]} 13. Bxc6 {[%clk 0:02:06.3]} 13... bxc6 {[%clk 0:03:02.5]} 14.
Qe2 {[%clk 0:02:05.6]} 14... Bc5 {[%clk 0:02:51.9]} 15. Nd2 {[%clk 0:02:04.4]}
15... Bd4 {[%clk 0:02:52.1]} 16. Rd1 {[%clk 0:01:57.1]} 16... c5 {[%clk
0:02:51.2]} 17. Nb3 {[%clk 0:01:53.3]} 17... Qf6 {[%clk 0:02:48.4]} 18. Nxd4
{[%clk 0:01:47.1]} 18... cxd4 {[%clk 0:02:50.3]} 19. Bf4 {[%clk 0:01:48.2]}
19... Nd7 {[%clk 0:02:46.1]} 20. Bd6 {[%clk 0:01:47.1]} 20... Rfc8 {[%clk
0:02:46.6]} 21. Rac1 {[%clk 0:01:45.5]} 21... e5 {[%clk 0:02:40.9]} 22. c5
{[%clk 0:01:45.2]} 22... a5 {[%clk 0:02:38.1]} 23. Re1 {[%clk 0:01:21.7]} 23...
Qe6 {[%clk 0:02:38.1]} 24. b3 {[%clk 0:01:18.1]} 24... h6 {[%clk 0:02:34]} 25.
f4 {[%clk 0:01:14.6]} 25... exf4 {[%clk 0:02:24]} 26. Qxe6 {[%clk 0:01:12.7]}
26... fxe6 {[%clk 0:02:25.9]} 27. gxf4 {[%clk 0:01:03.5]} 27... Ra6 {[%clk
0:02:26.1]} 28. Rc4 {[%clk 0:00:48.5]} 28... a4 {[%clk 0:02:18.2]} 29. Rxa4
{[%clk 0:00:41.1]} 29... Rxa4 {[%clk 0:02:19.1]} 30. bxa4 {[%clk 0:00:43]} 30...
Nxc5 {[%clk 0:02:19.2]} 31. a5 {[%clk 0:00:29.1]} 31... Na6 {[%clk 0:02:10.9]}
32. Rd1 {[%clk 0:00:17.6]} 32... Rc4 {[%clk 0:02:10.7]} 33. Be5 {[%clk
0:00:18.6]} 33... Ra4 {[%clk 0:02:05.6]} 34. Rxd4 {[%clk 0:00:18.7]} 34... Rxa5
{[%clk 0:02:01.4]} 35. Rd7 {[%clk 0:00:17.7]} 35... Rxa2 {[%clk 0:02:01.6]} 36.
Rxg7+ {[%clk 0:00:19.1]} 36... Kf8 {[%clk 0:02:02.9]} 37. Rg6 {[%clk 0:00:14]}
37... Nc5 {[%clk 0:02:01.3]} 38. Rxh6 {[%clk 0:00:10]} 38... Kf7 {[%clk
0:02:01.4]} 39. Rh3 {[%clk 0:00:08.1]} 39... Ne4 {[%clk 0:01:59.6]} 40. Re3
{[%clk 0:00:07.5]} 40... Nd2 {[%clk 0:01:47.9]} 41. Rg3 {[%clk 0:00:07]} 41...
Nc4 {[%clk 0:01:44.8]} 42. Bc3 {[%clk 0:00:04.7]} 42... Rc2 {[%clk 0:01:37.9]}
43. h4 {[%clk 0:00:03.3]} 43... Nd6 {[%clk 0:01:39]} 44. Be5 {[%clk 0:00:03.6]}
44... Nf5 {[%clk 0:01:39.6]} 45. Rh3 {[%clk 0:00:05.2]} 45... Kg6 {[%clk
0:01:38.1]} 46. h5+ {[%clk 0:00:06.2]} 46... Kh7 {[%clk 0:01:38.6]} 47. Bf6
{[%clk 0:00:08.1]} 47... Rc4 {[%clk 0:01:04.8]} 48. Be5 {[%clk 0:00:06.7]} 48...
Rc2 {[%clk 0:01:00.3]} 49. Kf1 {[%clk 0:00:06.4]} 49... Kh6 {[%clk 0:00:58.7]}
50. Bf6 {[%clk 0:00:06.3]} 50... Kh7 {[%clk 0:00:50.6]} 51. Bg5 {[%clk
0:00:07.4]} 51... Ng7 {[%clk 0:00:49.5]} 52. h6 {[%clk 0:00:03.8]} 52... Nf5
{[%clk 0:00:50.6]} 53. Rb3 {[%clk 0:00:03.8]} 53... Rc7 {[%clk 0:00:50.8]} 54.
Kg2 {[%clk 0:00:03.5]} 54... Kg6 {[%clk 0:00:35.3]} 55. Rb6 {[%clk 0:00:04]}
55... Rc2+ {[%clk 0:00:28.9]} 56. Kf3 {[%clk 0:00:05.2]} 56... Rc3+ {[%clk
0:00:26.1]} 57. Kf2 {[%clk 0:00:06.6]} 57... Rc7 {[%clk 0:00:23.7]} 58. Rxe6+
{[%clk 0:00:05.8]} 58... Kh5 {[%clk 0:00:25.2]} 59. Rf6 {[%clk 0:00:02.7]} 59...
Kg4 {[%clk 0:00:25.8]} 60. Ke2 {[%clk 0:00:04.3]} 60... Ng3+ {[%clk 0:00:23.9]}
61. Kd3 {[%clk 0:00:05.7]} 61... Rd7+ {[%clk 0:00:25.1]} 62. Kc4 {[%clk
0:00:06.4]} 62... Ne4 {[%clk 0:00:26.5]} 63. Rg6 {[%clk 0:00:05.3]} 63... Kf5
{[%clk 0:00:27]} 64. Rg7 {[%clk 0:00:06.6]} 64... Rd1 {[%clk 0:00:19.9]} 65. h7
{[%clk 0:00:07.9]} 65... Rh1 {[%clk 0:00:21.3]} 66. Kd5 {[%clk 0:00:05]} 66...
Rd1+ {[%clk 0:00:21.9]} 67. Kc6 {[%clk 0:00:05.6]} 67... Rh1 {[%clk 0:00:23.8]}
68. Kd7 {[%clk 0:00:06.7]} 68... Nc5+ {[%clk 0:00:21.9]} 69. Ke7 {[%clk
0:00:04.9]} 69... Ne4 {[%clk 0:00:21.3]} 70. Kf8 {[%clk 0:00:04]} 70... Rb1
{[%clk 0:00:18.9]} 71. Rf7+ {[%clk 0:00:04.5]} 71... Kg6 {[%clk 0:00:19.8]} 72.
h8=N+ {[%clk 0:00:03.9]} 72... Kh5 {[%clk 0:00:20.6]} 73. Re7 {[%clk 0:00:04.3]}
73... Nxg5 {[%clk 0:00:16.7]} 74. fxg5 {[%clk 0:00:04.9]} 74... Kxg5 {[%clk
0:00:17.5]} 75. Ra7 {[%clk 0:00:05.6]} 75... Kf6 {[%clk 0:00:18]} 76. Ra6+
{[%clk 0:00:06.1]} 76... Kf5 {[%clk 0:00:19.2]} 77. Nf7 {[%clk 0:00:07.6]} 77...
Rb8+ {[%clk 0:00:19.9]} 78. Kg7 {[%clk 0:00:08.8]} 78... Rb7 {[%clk 0:00:21.4]}
79. Ra5+ {[%clk 0:00:08.6]} 79... Kf4 {[%clk 0:00:22.1]} 80. Ra2 {[%clk
0:00:05.8]} 80... Rb6 {[%clk 0:00:23]} 81. Kf8 {[%clk 0:00:04.3]} 81... Kf5
{[%clk 0:00:23.2]} 82. Rf2+ {[%clk 0:00:04.4]} 82... Ke6 {[%clk 0:00:21.4]} 83.
Ng5+ {[%clk 0:00:05.6]} 83... Kd5 {[%clk 0:00:21.6]} 84. Rf5+ {[%clk 0:00:05.8]}
84... Kd4 {[%clk 0:00:22.3]} 85. Ke7 {[%clk 0:00:06.7]} 85... Rb7+ {[%clk
0:00:21.6]} 86. Kf6 {[%clk 0:00:08.2]} 86... Rb6+ {[%clk 0:00:22.5]} 87. Ne6+
{[%clk 0:00:09.8]} 87... Ke4 {[%clk 0:00:23.5]} 88. Ra5 {[%clk 0:00:11.3]} 88...
Rc6 {[%clk 0:00:23.9]} 89. Ra4+ {[%clk 0:00:10.1]} 89... Ke3 {[%clk 0:00:24.8]}
90. Ke5 {[%clk 0:00:10.3]} 90... Rc8 {[%clk 0:00:25.2]} 91. Ra3+ {[%clk
0:00:11.5]} 91... Kd2 {[%clk 0:00:25.8]} 92. Kd4 {[%clk 0:00:12.3]} 92... Kc2
{[%clk 0:00:25.4]} 93. Nc5 {[%clk 0:00:12.6]} 93... Rh8 {[%clk 0:00:26.2]} 94.
Ra2+ {[%clk 0:00:12.2]} 94... Kb1 {[%clk 0:00:27.4]} 95. Rg2 {[%clk 0:00:13.6]}
95... Rh4+ {[%clk 0:00:28.2]} 96. Kc3 {[%clk 0:00:14.7]} 96... Rh8 {[%clk
0:00:27.8]} 97. Ne6 {[%clk 0:00:07.1]} 97... Rc8+ {[%clk 0:00:26.7]} 98. Kd3
{[%clk 0:00:07.8]} 98... Rh8 {[%clk 0:00:27.2]} 99. Nd4 {[%clk 0:00:04.8]} 99...
Rd8 {[%clk 0:00:27.3]} 100. Kc3 {[%clk 0:00:05.6]} 100... Rc8+ {[%clk
0:00:28.4]} 101. Kd3 {[%clk 0:00:06.9]} 101... Rd8 {[%clk 0:00:29.4]} 102. Rh2
{[%clk 0:00:08.3]} 102... Rd7 {[%clk 0:00:30.1]} 103. Rd2 {[%clk 0:00:06.8]}
103... Rd8 {[%clk 0:00:30.1]} 104. Kc3 {[%clk 0:00:05.9]} 104... Rc8+ {[%clk
0:00:31]} 105. Kb4 {[%clk 0:00:06]} 105... Rb8+ {[%clk 0:00:22.9]} 106. Nb5
{[%clk 0:00:07.2]} 106... Kc1 {[%clk 0:00:24.1]} 107. Rh2 {[%clk 0:00:08.7]}
107... Kd1 {[%clk 0:00:24.7]} 108. Kc4 {[%clk 0:00:10.3]} 108... Rc8+ {[%clk
0:00:24.7]} 109. Kd3 {[%clk 0:00:11.8]} 109... Rd8+ {[%clk 0:00:24.3]} 110. Nd4
{[%clk 0:00:13.4]} 110... Kc1 {[%clk 0:00:25.5]} 111. Rc2+ {[%clk 0:00:08.8]}
111... Kb1 {[%clk 0:00:24.6]} 112. Rc7 {[%clk 0:00:10.3]} 112... Rh8 {[%clk
0:00:21.4]} 113. Rb7+ {[%clk 0:00:09.2]} 113... Ka2 {[%clk 0:00:20.7]} 114. Ne2
{[%clk 0:00:10.2]} 114... Rd8+ {[%clk 0:00:20.4]} 115. Kc2 {[%clk 0:00:08.3]}
115... Ka3 {[%clk 0:00:18.4]} 116. Rb1 {[%clk 0:00:05.5]} 116... Rd7 {[%clk
0:00:17.4]} 117. Rb8 {[%clk 0:00:04.9]} 117... Rd6 {[%clk 0:00:18.1]} 118. Nc1
{[%clk 0:00:03.5]} 118... Rc6+ {[%clk 0:00:18.2]} 119. Kd2 {[%clk 0:00:05.1]}
119... Rd6+ {[%clk 0:00:18]} 120. Nd3 {[%clk 0:00:06.6]} 120... Rd7 {[%clk
0:00:18]} 121. Rb6 {[%clk 0:00:05.1]} 121... Rd8 {[%clk 0:00:18.7]} 122. Rb7
{[%clk 0:00:06]} 122... Rd6 {[%clk 0:00:19.3]} 123. Kc3 {[%clk 0:00:07.2]}
123... Rc6+ {[%clk 0:00:20.3]} 124. Kd4 {[%clk 0:00:08.4]} 124... Rc8 {[%clk
0:00:20.4]} 125. Ne5 {[%clk 0:00:05.1]} 125... Ka4 {[%clk 0:00:17.7]} 126. Nd7
{[%clk 0:00:03.8]} 126... Ka3 {[%clk 0:00:14.1]} 127. Nc5 {[%clk 0:00:04.3]}
127... Ka2 {[%clk 0:00:14.2]} 128. Rb5 {[%clk 0:00:03.9]} 128... Rh8 {[%clk
0:00:14.2]} 129. Kc3 {[%clk 0:00:04.7]} 129... Rc8 {[%clk 0:00:09.1]} 130. Kc2
{[%clk 0:00:04.4]} 130... Ka3 {[%clk 0:00:07.8]} 131. Kc3 {[%clk 0:00:04.5]}
131... Ka2 {[%clk 0:00:07.5]} 132. Kc2 {[%clk 0:00:04.3]} 132... Ka3 {[%clk
0:00:08.6]} 1/2-1/2

[Event "*** Titled Tuesday Blitz"]
[Site "Chess.com"]
[Date "2018.08.07"]
[Round "5"]
[White "albi1999"]
[Black "fidetrainerNET"]
[Result "1-0"]
[WhiteElo "2380"]
[BlackElo "1915"]
[TimeControl "180+2"]
[EndTime "13:57:58 PDT"]
[Termination "albi1999 won by resignation"]

1. d4 {[%clk 0:03:01.9]} 1... c5 {[%clk 0:03:01.9]} 2. d5 {[%clk 0:03:02.9]}
2... e5 {[%clk 0:03:02.4]} 3. e4 {[%clk 0:03:02.7]} 3... d6 {[%clk 0:03:03.2]}
4. c4 {[%clk 0:03:04.1]} 4... Be7 {[%clk 0:03:03.9]} 5. Nf3 {[%clk 0:03:03]}
5... Bg4 {[%clk 0:03:04]} 6. Nbd2 {[%clk 0:03:03.6]} 6... Bg5 {[%clk 0:03:03.4]}
7. h3 {[%clk 0:02:48.5]} 7... Bxd2+ {[%clk 0:03:02.2]} 8. Bxd2 {[%clk
0:02:45.9]} 8... Bh5 {[%clk 0:02:57.7]} 9. Bd3 {[%clk 0:02:43.4]} 9... Nf6
{[%clk 0:02:55.4]} 10. g4 {[%clk 0:02:42.6]} 10... Bg6 {[%clk 0:02:53.2]} 11.
Qe2 {[%clk 0:02:44.1]} 11... a6 {[%clk 0:02:52.3]} 12. a4 {[%clk 0:02:44.7]}
12... O-O {[%clk 0:02:51.9]} 13. Rg1 {[%clk 0:02:40.7]} 13... Nfd7 {[%clk
0:02:49.3]} 14. h4 {[%clk 0:02:41]} 14... f5 {[%clk 0:02:49.6]} 1-0